fUST/lending_fUST_20250828
["ID","MTS","AMOUNT","RATE_DAILY","PERIOD"]
[381864632,1756375841730,-480.0,0.00019452,2]
[381864633,1756375841739,-480.0,0.00019452,2]
[381864634,1756375841749,-530.95,0.00019452,2]
[381864635,1756375841758,-480.0,0.00019452,2]
[381864636,1756375841767,-480.0,0.00019452,2]
[381864637,1756375841777,-480.0,0.00019452,2]
[381864638,1756375841786,-480.0,0.00019452,2]
[381864639,1756375841795,-480.0,0.00019452,2]
[381864640,1756375841804,-151.818076,0.00019452,2]
[381864641,1756375841813,-151.818076,0.00019452,2]
[381864642,1756375841822,-151.818076,0.00019452,2]
[381864643,1756375841832,-480.0,0.00019452,2]
[381864644,1756375841841,-151.818076,0.00019452,2]
[381864645,1756375841850,-151.818076,0.00019452,2]
[381864646,1756375841859,-151.818076,0.00019452,2]
[381864647,1756375841869,-151.818076,0.00019452,2]
[381864648,1756375841878,-480.0,0.00019452,2]
[381864649,1756375841887,-151.818076,0.00019452,2]
[381864650,1756375841896,-562.03,0.00019452,2]
[381864651,1756375841906,-480.0,0.00019452,2]
[381864652,1756375841915,-151.0,0.00019452,2]
[381864653,1756375841924,-484.31,0.00019452,2]
[381864654,1756375841933,-239.149456,0.00019452,2]
[381864655,1756375841942,-151.0,0.00019452,2]
[381864656,1756375841952,-151.0,0.00019452,2]
[381864657,1756375841962,-151.0,0.00019452,2]
[381864658,1756375841971,-505.45,0.00019452,2]
[381864659,1756375841980,-482.93163815,0.00019452,2]
[381864660,1756375841990,-480.0,0.00019452,2]
[381864661,1756375842000,-480.0,0.00019452,2]
[381864662,1756375842011,-480.0,0.00019452,2]
[381864663,1756375842020,-480.0,0.00019452,2]
[381864664,1756375842030,-1107.62,0.00019452,2]
[381864665,1756375842040,-480.0,0.00019452,2]
[381864666,1756375842050,-156.107426,0.00019452,2]
[381864667,1756375842059,-480.0,0.00019452,2]
[381864668,1756375842069,-489.73,0.00019452,2]
[381864669,1756375842078,-480.0,0.00019452,2]
[381864670,1756375842088,-657.44,0.00019452,2]
[381864671,1756375842098,-480.0,0.00019452,2]
[381864672,1756375842107,-544.65,0.00019452,2]
[381864673,1756375842117,-480.0,0.00019452,2]
[381864674,1756375842126,-480.0,0.00019452,2]
[381864675,1756375842136,-480.0,0.00019452,2]
[381864676,1756375842145,-480.0,0.00019452,2]
[381864677,1756375842155,-617.42,0.00019452,2]
[381864678,1756375842165,-480.0,0.00019452,2]
[381864679,1756375842175,-480.0,0.00019452,2]
[381864680,1756375842184,-480.0,0.00019452,2]
[381864681,1756375842193,-480.0,0.00019452,2]
[381864682,1756375842203,-480.0,0.00019452,2]
[381864683,1756375842212,-692.71,0.00019452,2]
[381864684,1756375842221,-151.0,0.00019452,2]
[381864685,1756375842231,-151.0,0.00019452,2]
[381864686,1756375842240,-480.0,0.00019452,2]
[381864687,1756375842250,-605.67,0.00019452,2]
[381864688,1756375842259,-480.0,0.00019452,2]
[381864689,1756375842269,-480.0,0.00019452,2]
[381864690,1756375842278,-151.0,0.00019452,2]
[381864691,1756375842288,-151.0,0.00019452,2]
[381864692,1756375842298,-845.37,0.00019452,2]
[381864693,1756375842308,-480.0,0.00019452,2]
[381864694,1756375842317,-151.0,0.00019452,2]
[381864695,1756375842326,-151.0,0.00019452,2]
[381864696,1756375842335,-151.0,0.00019452,2]
[381864697,1756375842345,-151.0,0.00019452,2]
[381864698,1756375842354,-480.0,0.00019452,2]
[381864699,1756375842364,-151.0,0.00019452,2]
[381864700,1756375842373,-151.0,0.00019452,2]
[381864701,1756375842383,-480.0,0.00019452,2]
[381864702,1756375842393,-480.0,0.00019452,2]
[381864703,1756375842402,-480.0,0.00019452,2]
[381864704,1756375842413,-480.0,0.00019452,2]
[381864705,1756375842422,-480.0,0.00019452,2]
[381864706,1756375842432,-767.38,0.00019452,2]
[381864707,1756375842441,-405.25386971,0.00019452,2]
[381864708,1756375842451,-480.0,0.00019452,2]
[381864709,1756375842460,-552.79837292,0.00019452,2]
[381864710,1756375842470,-560.53689672,0.00019452,2]
[381864711,1756375842479,-151.0,0.00019452,2]
[381864712,1756375842488,-151.0,0.00019452,2]
[381864713,1756375842497,-480.0,0.00019452,2]
[381864714,1756375842506,-151.0,0.00019452,2]
[381864715,1756375842515,-151.0,0.00019452,2]
[381864716,1756375842525,-480.0,0.00019452,2]
[381864717,1756375842534,-480.0,0.00019452,2]
[381864718,1756375842545,-480.0,0.00019452,2]
[381864719,1756375842557,-480.0,0.00019452,2]
[381864720,1756375842566,-480.0,0.00019452,2]
[381864721,1756375842577,-480.0,0.00019452,2]
[381864722,1756375842587,-151.0,0.00019452,2]
[381864723,1756375842598,-151.0,0.00019452,2]
[381864724,1756375842608,-480.0,0.00019452,2]
[381864725,1756375842618,-480.0,0.00019452,2]
[381864726,1756375842629,-1028.39,0.00019452,2]
[381864727,1756375842639,-515.45,0.00019452,2]
[381864728,1756375842649,-480.0,0.00019452,2]
[381864729,1756375842659,-1422.74,0.00019452,2]
[381864730,1756375842668,-480.0,0.00019452,2]
[381864731,1756375842678,-480.0,0.00019452,2]
[381864732,1756375842688,-480.0,0.00019452,2]
[381864733,1756375842697,-480.0,0.00019452,2]
[381864734,1756375842707,-480.0,0.00019452,2]
[381864735,1756375842717,-480.0,0.00019452,2]
[381864736,1756375842726,-480.0,0.00019452,2]
[381864737,1756375842736,-480.0,0.00019452,2]
[381864738,1756375842746,-480.0,0.00019452,2]
[381864739,1756375842755,-560.29,0.00019452,2]
[381864740,1756375842765,-482.80234624,0.00019452,2]
[381864741,1756375842774,-480.0,0.00019452,2]
[381864742,1756375842784,-480.0,0.00019452,2]
[381864743,1756375842793,-480.0,0.00019452,2]
[381864744,1756375842803,-480.0,0.00019452,2]
[381864745,1756375842812,-480.0,0.00019452,2]
[381864746,1756375842822,-480.0,0.00019452,2]
[381864747,1756375842831,-594.44,0.00019452,2]
[381864748,1756375842840,-516.89,0.00019452,2]
[381864749,1756375842850,-151.0,0.00019452,2]
[381864750,1756375842859,-151.0,0.00019452,2]
[381864751,1756375842869,-151.0,0.00019452,2]
[381864752,1756375842879,-227.729716,0.00019452,2]
[381864753,1756375842889,-480.0,0.00019452,2]
[381864754,1756375842899,-509.52754952,0.00019452,2]
[381864755,1756375842908,-480.0,0.00019452,2]
[381864756,1756375842918,-385.26578969,0.00019452,2]
[381864757,1756375842928,-151.0,0.00019452,2]
[381864758,1756375842938,-151.0,0.00019452,2]
[381864759,1756375842948,-480.0,0.00019452,2]
[381864760,1756375842958,-151.0,0.00019452,2]
[381864762,1756375842967,-151.0,0.00019452,2]
[381864763,1756375842977,-480.0,0.00019452,2]
[381864764,1756375842986,-151.0,0.00019452,2]
[381864765,1756375842996,-151.0,0.00019452,2]
[381864767,1756375843005,-151.0,0.00019452,2]
[381864769,1756375843015,-151.0,0.00019452,2]
[381864772,1756375843025,-151.0,0.00019452,2]
[381864775,1756375843035,-151.0,0.00019452,2]
[381864776,1756375843044,-480.0,0.00019452,2]
[381864777,1756375843053,-151.0,0.00019452,2]
[381864778,1756375843063,-151.0,0.00019452,2]
[381864780,1756375843073,-480.0,0.00019452,2]
[381864781,1756375843083,-480.0,0.00019452,2]
[381864782,1756375843092,-480.0,0.00019452,2]
[381864783,1756375843102,-797.8,0.00019452,2]
[381864784,1756375843112,-480.0,0.00019452,2]
[381864785,1756375843122,-480.0,0.00019452,2]
[381864786,1756375843132,-151.0,0.00019452,2]
[381864787,1756375843141,-480.0,0.00019452,2]
[381864788,1756375843151,-151.0,0.00019452,2]
[381864789,1756375843161,-248.360868,0.00019452,2]
[381864790,1756375843171,-715.99,0.00019452,2]
[381864791,1756375843180,-480.0,0.00019452,2]
[381864792,1756375843192,-480.0,0.00019452,2]
[381864793,1756375843201,-151.0,0.00019452,2]
[381864794,1756375843211,-151.0,0.00019452,2]
[381864796,1756375843221,-480.0,0.00019452,2]
[381864799,1756375843230,-480.0,0.00019452,2]
[381864801,1756375843241,-480.0,0.00019452,2]
[381864802,1756375843251,-480.0,0.00019452,2]
[381864804,1756375843260,-621.29,0.00019452,2]
[381864806,1756375843270,-1244.32,0.00019452,2]
[381864809,1756375843279,-480.0,0.00019452,2]
[381864811,1756375843289,-480.0,0.00019452,2]
[381864813,1756375843299,-480.0,0.00019452,2]
[381864815,1756375843309,-2672.36,0.00019452,2]
[381864817,1756375843318,-480.0,0.00019452,2]
[381864819,1756375843328,-481.69,0.00019452,2]
[381864821,1756375843338,-480.0,0.00019452,2]
[381864823,1756375843348,-480.0,0.00019452,2]
[381864825,1756375843357,-481.8,0.00019452,2]
[381864827,1756375843367,-480.0,0.00019452,2]
[381864829,1756375843378,-480.0,0.00019452,2]
[381864831,1756375843387,-513.02,0.00019452,2]
[381864833,1756375843397,-480.0,0.00019452,2]
[381864835,1756375843407,-1196.44,0.00019452,2]
[381864838,1756375843417,-1849.46,0.00019452,2]
[381864840,1756375843426,-576.55,0.00019452,2]
[381864842,1756375843436,-480.0,0.00019452,2]
[381864844,1756375843446,-1449.53,0.00019452,2]
[381864846,1756375843455,-480.0,0.00019452,2]
[381864848,1756375843466,-480.0,0.00019452,2]
[381864850,1756375843475,-4824.98,0.00019452,2]
[381864852,1756375843485,-480.0,0.00019452,2]
[381864854,1756375843495,-319.73697056,0.00019452,2]
[381864856,1756375843505,-560.97,0.00019452,2]
[381864858,1756375843515,-480.0,0.00019452,2]
[381864860,1756375843524,-151.0,0.00019452,2]
[381864862,1756375843534,-480.0,0.00019452,2]
[381864865,1756375843545,-151.0,0.00019452,2]
[381864867,1756375843556,-480.0,0.00019452,2]
[381864869,1756375843566,-480.0,0.00019452,2]
[381864871,1756375843576,-3346.33,0.00019452,2]
[381864873,1756375843585,-1362.16,0.00019452,2]
[381864875,1756375843595,-480.0,0.00019452,2]
[381864877,1756375843605,-912.31,0.00019452,2]
[381864879,1756375843615,-762.62,0.00019452,2]
[381864881,1756375843625,-480.0,0.00019452,2]
[381864884,1756375843635,-480.0,0.00019452,2]
[381864887,1756375843645,-604.37,0.00019452,2]
[381864890,1756375843655,-2502.81,0.00019452,2]
[381864893,1756375843665,-348.22120734,0.00019452,2]
[381864896,1756375843675,-582.92,0.00019452,2]
[381864900,1756375843685,-480.0,0.00019452,2]
[381864903,1756375843695,-480.0,0.00019452,2]
[381864906,1756375843706,-480.0,0.00019452,2]
[381864908,1756375843716,-480.0,0.00019452,2]
[381864910,1756375843726,-480.0,0.00019452,2]
[381864912,1756375843736,-793.7,0.00019452,2]
[381864914,1756375843746,-480.0,0.00019452,2]
[381864916,1756375843756,-531.34,0.00019452,2]
[381864918,1756375843766,-657.04,0.00019452,2]
[381864920,1756375843776,-480.0,0.00019452,2]
[381864922,1756375843786,-609.28,0.00019452,2]
[381864925,1756375843796,-1077.65,0.00019452,2]
[381864927,1756375843806,-1042.3,0.00019452,2]
[381864929,1756375843816,-480.0,0.00019452,2]
[381864931,1756375843825,-880.53,0.00019452,2]
[381864933,1756375843836,-1935.61,0.00019452,2]
[381864935,1756375843845,-480.0,0.00019452,2]
[381864937,1756375843855,-672.01,0.00019452,2]
[381864939,1756375843865,-480.0,0.00019452,2]
[381864941,1756375843875,-480.0,0.00019452,2]
[381864943,1756375843884,-480.0,0.00019452,2]
[381864945,1756375843894,-480.0,0.00019452,2]
[381864947,1756375843904,-1032.91,0.00019452,2]
[381864949,1756375843914,-565.82,0.00019452,2]
[381864951,1756375843924,-480.0,0.00019452,2]
[381864954,1756375843935,-2052.66,0.00019452,2]
[381864956,1756375843944,-480.0,0.00019452,2]
[381864958,1756375843954,-2504.91,0.00019452,2]
[381864960,1756375843964,-4145.83,0.00019452,2]
[381864962,1756375843974,-535.69,0.00019452,2]
[381864964,1756375843983,-601.4449442,0.00019452,2]
[381864966,1756375843993,-825.78,0.00019452,2]
[381864968,1756375844003,-480.0,0.00019452,2]
[381864970,1756375844013,-480.0,0.00019452,2]
[381864972,1756375844022,-480.0,0.00019452,2]
[381864974,1756375844032,-480.0,0.00019452,2]
[381864998,1756375844230,-2702.13,0.00019452,2]
[381865000,1756375844248,-480.0,0.00019452,2]
[381865002,1756375844258,-480.0,0.00019452,2]
[381865004,1756375844267,-480.0,0.00019452,2]
[381865006,1756375844277,-997.13,0.00019452,2]
[381865008,1756375844286,-2940.65,0.00019452,2]
[381865010,1756375844296,-151.0,0.00019452,2]
[381865012,1756375844305,-151.0,0.00019452,2]
[381865014,1756375844315,-484.74,0.00019452,2]
[381865016,1756375844324,-537.37,0.00019452,2]
[381865018,1756375844333,-480.0,0.00019452,2]
[381865020,1756375844343,-151.0,0.00019452,2]
[381865022,1756375844352,-151.0,0.00019452,2]
[381865024,1756375844361,-480.0,0.00019452,2]
[381865026,1756375844371,-1348.33,0.00019452,2]
[381865028,1756375844380,-480.0,0.00019452,2]
[381865030,1756375844390,-707.12,0.00019452,2]
[381865032,1756375844399,-1890.95,0.00019452,2]
[381865034,1756375844409,-3215.91,0.00019452,2]
[381865036,1756375844418,-1741.25,0.00019452,2]
[381865038,1756375844427,-500.81,0.00019452,2]
[381865040,1756375844437,-498.67,0.00019452,2]
[381865042,1756375844446,-151.0,0.00019452,2]
[381865044,1756375844456,-480.0,0.00019452,2]
[381865047,1756375844466,-480.0,0.00019452,2]
[381865048,1756375844476,-480.0,0.00019452,2]
[381865051,1756375844486,-480.0,0.00019452,2]
[381865053,1756375844495,-480.0,0.00019452,2]
[381865055,1756375844504,-480.0,0.00019452,2]
[381865057,1756375844513,-151.0,0.00019452,2]
[381865059,1756375844522,-151.0,0.00019452,2]
[381865061,1756375844531,-151.0,0.00019452,2]
[381865063,1756375844540,-480.0,0.00019452,2]
[381865065,1756375844552,-151.0,0.00019452,2]
[381865067,1756375844562,-151.0,0.00019452,2]
[381865069,1756375844571,-480.0,0.00019452,2]
[381865071,1756375844581,-566.21,0.00019452,2]
[381865073,1756375844591,-151.0,0.00019452,2]
[381865075,1756375844601,-151.0,0.00019452,2]
[381865077,1756375844611,-3874.27,0.00019452,2]
[381865079,1756375844621,-480.0,0.00019452,2]
[381865081,1756375844631,-151.0,0.00019452,2]
[381865083,1756375844640,-151.0,0.00019452,2]
[381865085,1756375844649,-151.0,0.00019452,2]
[381865087,1756375844659,-701.62,0.00019452,2]
[381865089,1756375844668,-588.87,0.00019452,2]
[381865091,1756375844678,-727.77,0.00019452,2]
[381865093,1756375844688,-480.0,0.00019452,2]
[381865095,1756375844698,-625.8,0.00019452,2]
[381865097,1756375844707,-1279.12,0.00019452,2]
[381865099,1756375844717,-740.98,0.00019452,2]
[381865101,1756375844727,-151.0,0.00019452,2]
[381865103,1756375844739,-480.0,0.00019452,2]
[381865105,1756375844748,-2005.26,0.00019452,2]
[381865107,1756375844758,-554.3,0.00019452,2]
[381865109,1756375844767,-500.75,0.00019452,2]
[381865111,1756375844776,-480.0,0.00019452,2]
[381865113,1756375844786,-480.0,0.00019452,2]
[381865115,1756375844795,-480.0,0.00019452,2]
[381865117,1756375844804,-1143.91,0.00019452,2]
[381865119,1756375844813,-480.0,0.00019452,2]
[381865121,1756375844823,-480.0,0.00019452,2]
[381865123,1756375844832,-647.36,0.00019452,2]
[381865125,1756375844841,-480.0,0.00019452,2]
[381865127,1756375844851,-480.0,0.00019452,2]
[381865129,1756375844860,-552.21,0.00019452,2]
[381865131,1756375844870,-1324.21,0.00019452,2]
[381865133,1756375844879,-605.08,0.00019452,2]
[381865135,1756375844889,-151.0,0.00019452,2]
[381865137,1756375844898,-480.0,0.00019452,2]
[381865139,1756375844908,-151.0,0.00019452,2]
[381865141,1756375844917,-151.0,0.00019452,2]
[381865143,1756375844927,-151.0,0.00019452,2]
[381865145,1756375844936,-480.0,0.00019452,2]
[381865147,1756375844945,-480.0,0.00019452,2]
[381865149,1756375844955,-151.0,0.00019452,2]
[381865151,1756375844964,-151.0,0.00019452,2]
[381865153,1756375844973,-151.0,0.00019452,2]
[381865155,1756375844983,-480.0,0.00019452,2]
[381865157,1756375844994,-2867.21,0.00019452,2]
[381865159,1756375845003,-151.0,0.00019452,2]
[381865161,1756375845013,-482.6569796,0.00019452,2]
[381865163,1756375845023,-151.0,0.00019452,2]
[381865165,1756375845032,-969.05,0.00019452,2]
[381865167,1756375845042,-480.0,0.00019452,2]
[381865170,1756375845051,-480.0,0.00019452,2]
[381865172,1756375845061,-492.35,0.00019452,2]
[381865174,1756375845071,-480.0,0.00019452,2]
[381865176,1756375845081,-480.0,0.00019452,2]
[381865178,1756375845090,-648.9,0.00019452,2]
[381865180,1756375845099,-480.0,0.00019452,2]
[381865182,1756375845109,-6010.77,0.00019452,2]
[381865184,1756375845118,-480.0,0.00019452,2]
[381865186,1756375845128,-480.0,0.00019452,2]
[381865188,1756375845138,-876.52,0.00019452,2]
[381865190,1756375845147,-151.0,0.00019452,2]
[381865192,1756375845158,-2427.33,0.00019452,2]
[381865194,1756375845167,-480.0,0.00019452,2]
[381865196,1756375845176,-860.83,0.00019452,2]
[381865198,1756375845185,-480.0,0.00019452,2]
[381865200,1756375845195,-151.0,0.00019452,2]
[381865202,1756375845204,-151.0,0.00019452,2]
[381865204,1756375845213,-153.684528,0.00019452,2]
[381865206,1756375845223,-151.0,0.00019452,2]
[381865208,1756375845232,-163.33232,0.00019452,2]
[381865210,1756375845242,-151.0,0.00019452,2]
[381865212,1756375845252,-2826.8,0.00019452,2]
[381865214,1756375845261,-151.0,0.00019452,2]
[381865216,1756375845271,-151.0,0.00019452,2]
[381865218,1756375845280,-151.0,0.00019452,2]
[381865220,1756375845290,-480.0,0.00019452,2]
[381865222,1756375845299,-480.0,0.00019452,2]
[381865224,1756375845309,-480.0,0.00019452,2]
[381865226,1756375845318,-162.291453,0.00019452,2]
[381865228,1756375845327,-630.56,0.00019452,2]
[381865229,1756375845336,-1400.0,0.00019462,2]
[381865230,1756375845346,-500.51078279,0.00019473,2]
[381865231,1756375845356,-554.18740791,0.00019473,2]
[381865232,1756375845365,-212.68192478,0.00019473,2]
[381865233,1756375845375,-500.0,0.00019473,2]
[381865234,1756375845384,-500.0,0.00019473,2]
[381865235,1756375845393,-500.0,0.00019473,2]
[381865236,1756375845402,-500.0,0.00019473,2]
[381865237,1756375845411,-500.0,0.00019473,2]
[381865238,1756375845420,-500.0,0.00019473,2]
[381865239,1756375845429,-500.0,0.00019473,2]
[381865240,1756375845438,-500.0,0.00019473,2]
[381865241,1756375845447,-502.07979579,0.00019473,2]
[381865242,1756375845456,-500.0,0.00019473,2]
[381865243,1756375845465,-500.0,0.00019473,2]
[381865244,1756375845475,-500.0,0.00019473,2]
[381865245,1756375845484,-500.0,0.00019473,2]
[381865246,1756375845493,-500.0,0.00019473,2]
[381865247,1756375845503,-500.0,0.00019473,2]
[381865248,1756375845512,-500.0,0.00019473,2]
[381865249,1756375845521,-500.0,0.00019473,2]
[381865250,1756375845530,-500.0,0.00019473,2]
[381865251,1756375845539,-500.0,0.00019473,2]
[381865252,1756375845553,-500.0,0.00019473,2]
[381865253,1756375845562,-504.97425521,0.00019473,2]
[381865254,1756375845571,-500.0,0.00019473,2]
[381865255,1756375845582,-500.0,0.00019473,2]
[381865256,1756375845590,-500.0,0.00019473,2]
[381865257,1756375845599,-500.0,0.00019473,2]
[381865258,1756375845608,-500.0,0.00019473,2]
[381865259,1756375845617,-500.0,0.00019473,2]
[381865260,1756375845627,-500.0,0.00019473,2]
[381865261,1756375845637,-500.0,0.00019473,2]
[381865262,1756375845646,-500.0,0.00019473,2]
[381865263,1756375845655,-500.0,0.00019473,2]
[381865264,1756375845665,-500.0,0.00019473,2]
[381865265,1756375845674,-500.0,0.00019473,2]
[381865266,1756375845684,-500.0,0.00019473,2]
[381865267,1756375845693,-500.0,0.00019473,2]
[381865268,1756375845702,-500.0,0.00019473,2]
[381865269,1756375845712,-1591.47065503,0.00019489,2]
[381865270,1756375845722,-1000.0,0.000195,2]
[381865271,1756375845731,-12710.44222334,0.0001955,2]
[381865272,1756375845741,-417.15472785,0.0001955,2]
[381865273,1756375845750,-160.0,0.0001955,2]
[381865274,1756375845759,-845.47023312,0.0001955,2]
[381865275,1756375845768,-151.0,0.0001955,2]
[381865276,1756375845778,-151.0,0.0001955,2]
[381865277,1756375845787,-160.0,0.0001955,2]
[381865278,1756375845796,-160.0,0.0001955,2]
[381865279,1756375845806,-160.0,0.0001955,2]
[381865280,1756375845815,-160.0,0.0001955,2]
[381865281,1756375845824,-216.18903889,0.0001955,2]
[381865282,1756375845833,-160.0,0.0001955,2]
[381865283,1756375845842,-160.0,0.0001955,2]
[381865284,1756375845851,-425.52029335,0.0001955,2]
[381865285,1756375845861,-160.0,0.0001955,2]
[381865287,1756375845870,-232.64478309,0.0001955,2]
[381865289,1756375845879,-217.27834477,0.0001955,2]
[381865290,1756375845888,-529.67291817,0.0001955,2]
[381865291,1756375845898,-300.0,0.00019561,20]
[381865292,1756375845907,-300.0,0.00019561,20]
[381865293,1756375845917,-300.0,0.00019561,20]
[381865294,1756375845926,-300.0,0.00019561,20]
[381865295,1756375845935,-300.0,0.00019561,20]
[381865296,1756375845944,-300.0,0.00019561,20]
[381865297,1756375845953,-300.0,0.00019561,20]
[381865298,1756375845962,-300.0,0.00019561,20]
[381865299,1756375845971,-300.0,0.00019561,20]
[381865300,1756375845980,-300.0,0.00019561,20]
[381865301,1756375845990,-300.0,0.00019561,20]
[381865302,1756375845999,-300.0,0.00019561,20]
[381865303,1756375846008,-300.0,0.00019561,20]
[381865304,1756375846017,-300.0,0.00019561,20]
[381865305,1756375846027,-300.0,0.00019561,20]
[381865306,1756375846036,-600.0,0.00019561,20]
[381865307,1756375846045,-151.0,0.00019561,2]
[381865308,1756375846054,-151.0,0.00019561,2]
[381865309,1756375846064,-1591.47065503,0.00019695,2]
[381865310,1756375846073,-1000.0,0.00019721,2]
[381865311,1756375846083,-1000.0,0.00019721,2]
[381865312,1756375846092,-1000.0,0.00019721,2]
[381865313,1756375846101,-1000.0,0.00019721,2]
[381865314,1756375846110,-500.0,0.00019721,2]
[381865315,1756375846121,-1000.0,0.00019721,2]
[381865317,1756375846130,-1000.0,0.00019721,2]
[381865319,1756375846140,-1000.0,0.00019721,2]
[381865320,1756375846148,-1000.0,0.00019721,2]
[381865321,1756375846158,-480.0,0.00019726,2]
[381865322,1756375846167,-480.0,0.00019726,2]
[381865323,1756375846177,-554.17567353,0.00019726,2]
[381865324,1756375846187,-480.0,0.00019726,2]
[381865325,1756375846196,-480.0,0.00019726,2]
[381865326,1756375846206,-517.61,0.00019726,2]
[381865327,1756375846215,-480.0,0.00019726,2]
[381865328,1756375846224,-480.0,0.00019726,2]
[381865329,1756375846234,-482.77791867,0.00019726,2]
[381865330,1756375846243,-480.0,0.00019726,2]
[381865331,1756375846252,-480.0,0.00019726,2]
[381865332,1756375846262,-81.98520002,0.00019726,2]
[381865337,1756375846861,-116.43342092,0.00019178,2]
[381865339,1756376396343,-179.20355683,0.00018172,2]
[381865340,1756376399849,-111.67319017,0.00018172,2]
[381865342,1756376491292,639.62693,0.00013699,2]
[381865344,1756376532639,-153.48452266,0.00018152,2]
[381865345,1756376535322,-230.25978769,0.00018152,2]
[381865346,1756376538002,-221.88966131,0.00018152,2]
[381865347,1756376541601,-10.49149934,0.00018152,2]
[381865348,1756376606429,-317.21845871,0.00018413,2]
[381865349,1756376611549,-127.14281095,0.00018413,2]
[381865350,1756376616413,-156.19886906,0.00018599,2]
[381865351,1756376616442,-300.0,0.00018698,2]
[381865352,1756376616471,-500.0,0.00018699,2]
[381865353,1756376616499,-185.73993262,0.00018699,2]
[381865354,1756376616530,-325.73606302,0.00018699,2]
[381865355,1756376616562,-376.96565961,0.00018699,2]
[381865356,1756376616588,-312.79253608,0.00018699,2]
[381865357,1756376616616,-340.66427937,0.00018699,2]
[381865358,1756376616953,-1014.84468239,0.000187,2]
[381865359,1756376616977,-10000.01,0.000187,2]
[381865360,1756376617114,-10000.01,0.000187,2]
[381865361,1756376617150,-10000.01,0.000187,2]
[381865362,1756376617308,-10000.01,0.000187,2]
[381865363,1756376617619,-10000.01,0.000187,2]
[381865364,1756376617979,-10000.01,0.000187,2]
[381865365,1756376618006,-10000.01,0.000187,2]
[381865366,1756376618165,-10000.01,0.000187,2]
[381865367,1756376618317,-10000.01,0.000187,2]
[381865401,1756376811127,-201.23511512,0.000187,2]
[381865425,1756376890611,-171.84779506,0.00018169,2]
[381865426,1756376892252,-224.3214838,0.00018169,2]
[381865428,1756376895232,-191.348148,0.00018169,2]
[381865429,1756376898096,-78.48257314,0.00018169,2]
[381865534,1756377038555,-191.348148,0.00018513,2]
[381865535,1756377038565,-1081.83020249,0.000187,2]
[381865536,1756377038575,-187.78006525,0.00019166,2]
[381865537,1756377038585,-300.0,0.00019167,2]
[381865538,1756377038594,-300.0,0.00019167,2]
[381865539,1756377038604,-1200.0,0.00019167,2]
[381865540,1756377038613,-10137.43594082,0.00019168,2]
[381865541,1756377038629,-2770.20692122,0.00019168,2]
[381865542,1756377038641,-2005.41486483,0.00019168,2]
[381865543,1756377038652,-1803.78344563,0.00019168,2]
[381865544,1756377038816,-33283.1588275,0.00019168,2]
[381865545,1756377038826,-156.71,0.00019168,3]
[381865546,1756377038836,-470.13,0.00019168,3]
[381865547,1756377038845,-772.88,0.00019168,3]